[Event "Titled Tuesday Blitz August 1 Late 2023"]
[White "Shtembuliak, Evgeny"]
[Black "Bjelobrk, Igor"]
[WhiteFideId "14113325"]
[BlackFideId "4300726"]
[WhiteElo "2875"]
[BlackElo "2670"]
[Result "0-1"]
[Round "6"]
[TimeControl "180+1"]
[Date "2023.08.01"]
[WhiteClock "0:00:01"]
[BlackClock "0:00:21"]
[Board "18"]

1. c4 {[%clk 0:03:00]}  b6 {[%clk 0:02:54]} 2. Nc3 {[%clk 0:03:00]}  Bb7 {[%clk 0:02:54]} 3. e4 {[%clk 0:02:59]}  e5 {[%clk 0:02:45]} 4. Nf3 {[%clk 0:02:49]}  Nc6 {[%clk 0:02:40]} 5. Be2 {[%clk 0:02:49]}  Bc5 {[%clk 0:02:35]} 6. O-O {[%clk 0:02:49]}  d6 {[%clk 0:02:31]} 7. d3 {[%clk 0:02:45]}  Nge7 {[%clk 0:02:28]} 8. Nd2 {[%clk 0:02:42]}  O-O {[%clk 0:02:19]} 9. a3 {[%clk 0:02:38]}  a5 {[%clk 0:02:18]} 10. Nb3 {[%clk 0:02:38]}  f5 {[%clk 0:02:13]} 11. Nxc5 {[%clk 0:02:38]}  bxc5 {[%clk 0:02:12]} 12. exf5 {[%clk 0:02:26]}  Nxf5 {[%clk 0:02:12]} 13. Bf3 {[%clk 0:02:26]}  Rb8 {[%clk 0:01:59]} 14. Bd5+ {[%clk 0:01:59]}  Kh8 {[%clk 0:01:59]} 15. f4 {[%clk 0:01:56]}  exf4 {[%clk 0:01:53]} 16. Bxf4 {[%clk 0:01:53]}  Ncd4 {[%clk 0:01:52]} 17. Rf2 {[%clk 0:01:42]}  Bxd5 {[%clk 0:01:51]} 18. Nxd5 {[%clk 0:01:41]}  Rb3 {[%clk 0:01:43]} 19. Qd2 {[%clk 0:01:32]}  Ne6 {[%clk 0:01:32]} 20. Raf1 {[%clk 0:01:29]}  Nfd4 {[%clk 0:01:32]} 21. Bg5 {[%clk 0:01:17]}  Rxf2 {[%clk 0:01:26]} 22. Qxf2 {[%clk 0:01:12]}  Qg8 {[%clk 0:01:26]} 23. Ne7 {[%clk 0:01:11]}  Qe8 {[%clk 0:01:26]} 24. Bf6 {[%clk 0:00:47]}  Rb8 {[%clk 0:01:02]} 25. Bxd4 {[%clk 0:00:15]}  Nxd4 {[%clk 0:00:52]} 26. Nd5 {[%clk 0:00:15]}  c6 {[%clk 0:00:49]} 27. Nc3 {[%clk 0:00:09]}  h6 {[%clk 0:00:47]} 28. Ne4 {[%clk 0:00:09]}  Qe7 {[%clk 0:00:47]} 29. h3 {[%clk 0:00:09]}  a4 {[%clk 0:00:40]} 30. Kh1 {[%clk 0:00:09]}  Qe5 {[%clk 0:00:37]} 31. Nc3 {[%clk 0:00:06]}  Rb3 {[%clk 0:00:32]} 32. Re1 {[%clk 0:00:05]}  Qf5 {[%clk 0:00:30]} 33. Re8+ {[%clk 0:00:03]}  Kh7 {[%clk 0:00:30]} 34. Qxf5+ {[%clk 0:00:03]}  Nxf5 {[%clk 0:00:30]} 35. g4 {[%clk 0:00:03]}  Nd4 {[%clk 0:00:28]} 36. Nxa4 {[%clk 0:00:03]}  Rxd3 {[%clk 0:00:27]} 37. Kg2 {[%clk 0:00:03]}  Nf3 {[%clk 0:00:25]} 38. Re2 {[%clk 0:00:01]}  Ne5 {[%clk 0:00:24]} 39. Rc2 {[%clk 0:00:01]}  Ng6 {[%clk 0:00:22]} 40. Nb6 {[%clk 0:00:01]}  Nf4+ {[%clk 0:00:22]} 41. Kf2 {[%clk 0:00:02]}  Nxh3+ {[%clk 0:00:22]} 42. Ke2 {[%clk 0:00:02]}  Nf4+ {[%clk 0:00:22]} 43. Kf2 {[%clk 0:00:03]}  Kg6 {[%clk 0:00:22]} 44. b3 {[%clk 0:00:03]}  Rxb3 {[%clk 0:00:22]} 45. Nc8 {[%clk 0:00:04]}  Rxa3 {[%clk 0:00:20]} 46. Nxd6 {[%clk 0:00:04]}  Kg5 {[%clk 0:00:20]} 47. Nf7+ {[%clk 0:00:04]}  Kxg4 {[%clk 0:00:20]} 48. Ne5+ {[%clk 0:00:05]}  Kf5 {[%clk 0:00:20]} 49. Nxc6 {[%clk 0:00:06]}  h5 {[%clk 0:00:21]} 50. Ne7+ {[%clk 0:00:06]}  Ke4 {[%clk 0:00:20]} 51. Rb2 {[%clk 0:00:05]}  g5 {[%clk 0:00:20]} 52. Rb8 {[%clk 0:00:04]}  Ra2+ {[%clk 0:00:20]} 53. Kf1 {[%clk 0:00:04]}  h4 {[%clk 0:00:20]} 54. Nd5 {[%clk 0:00:03]}  Nxd5 {[%clk 0:00:20]} 55. Re8+ {[%clk 0:00:04]}  Kd4 {[%clk 0:00:19]} 56. cxd5 {[%clk 0:00:03]}  Kxd5 {[%clk 0:00:19]} 57. Rg8 {[%clk 0:00:04]}  h3 {[%clk 0:00:19]} 58. Rxg5+ {[%clk 0:00:04]}  Kc6 {[%clk 0:00:19]} 59. Rg6+ {[%clk 0:00:03]}  Kb5 {[%clk 0:00:19]} 60. Rh6 {[%clk 0:00:01]}  h2 {[%clk 0:00:20]} 61. Rh3 {[%clk 0:00:01]}  h1=Q+ {[%clk 0:00:19]} 62. Rxh1 {[%clk 0:00:01]}  Ra1+ {[%clk 0:00:20]} 63. Kg2 {[%clk 0:00:02]}  Rxh1 {[%clk 0:00:20]} 64. Kxh1 {[%clk 0:00:01]}  Kb4 {[%clk 0:00:21]} 0-1


[Site "https://www.chess.com"]

[Event "Titled Tuesday Blitz August 1 Late 2023"]
[White "Adewumi, Tanitoluwa"]
[Black "Maksimovic, Bojan"]
[WhiteFideId "30966396"]
[BlackFideId "14408120"]
[WhiteElo "2654"]
[BlackElo "2850"]
[Result "0-1"]
[Round "6"]
[TimeControl "180+1"]
[Date "2023.08.01"]
[WhiteClock "0:00:01"]
[BlackClock "0:00:08"]
[Board "19"]

1. e4 {[%clk 0:03:00]}  g6 {[%clk 0:03:00]} 2. d4 {[%clk 0:02:57]}  Nf6 {[%clk 0:02:52]} 3. e5 {[%clk 0:02:56]}  Nh5 {[%clk 0:02:51]} 4. Nc3 {[%clk 0:02:35]}  d6 {[%clk 0:02:50]} 5. f4 {[%clk 0:02:25]}  Ng7 {[%clk 0:02:36]} 6. Nf3 {[%clk 0:02:23]}  c6 {[%clk 0:02:33]} 7. Bd3 {[%clk 0:02:04]}  Bf5 {[%clk 0:02:09]} 8. Be2 {[%clk 0:01:57]}  Bg4 {[%clk 0:01:56]} 9. O-O {[%clk 0:01:55]}  Bxf3 {[%clk 0:01:53]} 10. Bxf3 {[%clk 0:01:55]}  d5 {[%clk 0:01:53]} 11. g4 {[%clk 0:01:49]}  h5 {[%clk 0:01:52]} 12. h3 {[%clk 0:01:45]}  hxg4 {[%clk 0:01:45]} 13. hxg4 {[%clk 0:01:46]}  f5 {[%clk 0:01:44]} 14. exf6 {[%clk 0:01:39]}  exf6 {[%clk 0:01:44]} 15. Be3 {[%clk 0:01:30]}  Na6 {[%clk 0:01:21]} 16. Qd3 {[%clk 0:01:19]}  Kf7 {[%clk 0:01:21]} 17. Rae1 {[%clk 0:01:17]}  Nc7 {[%clk 0:01:18]} 18. Kg2 {[%clk 0:01:03]}  Bd6 {[%clk 0:01:18]} 19. Ne2 {[%clk 0:00:54]}  Qd7 {[%clk 0:01:08]} 20. c4 {[%clk 0:00:51]}  Rae8 {[%clk 0:00:40]} 21. Nc3 {[%clk 0:00:34]}  Bb4 {[%clk 0:00:24]} 22. a3 {[%clk 0:00:24]}  Bxc3 {[%clk 0:00:24]} 23. bxc3 {[%clk 0:00:25]}  f5 {[%clk 0:00:11]} 24. g5 {[%clk 0:00:15]}  Re4 {[%clk 0:00:12]} 25. Rh1 {[%clk 0:00:13]}  Rxh1 {[%clk 0:00:09]} 26. Rxh1 {[%clk 0:00:12]}  Qe7 {[%clk 0:00:10]} 27. Bxe4 {[%clk 0:00:13]}  fxe4 {[%clk 0:00:09]} 28. Qe2 {[%clk 0:00:13]}  Qxa3 {[%clk 0:00:08]} 29. f5 {[%clk 0:00:10]}  gxf5 {[%clk 0:00:05]} 30. g6+ {[%clk 0:00:10]}  Kxg6 {[%clk 0:00:05]} 31. Rh6+ {[%clk 0:00:10]}  Kf7 {[%clk 0:00:06]} 32. Bg5 {[%clk 0:00:10]}  Nce6 {[%clk 0:00:06]} 33. Rf6+ {[%clk 0:00:10]}  Kg8 {[%clk 0:00:07]} 34. Bh6 {[%clk 0:00:07]}  Qxc3 {[%clk 0:00:06]} 35. cxd5 {[%clk 0:00:02]}  cxd5 {[%clk 0:00:06]} 36. Qb5 {[%clk 0:00:02]}  Qc2+ {[%clk 0:00:06]} 37. Kg3 {[%clk 0:00:02]}  Qc6 {[%clk 0:00:06]} 38. Qxc6 {[%clk 0:00:01]}  bxc6 {[%clk 0:00:07]} 39. Bxg7 {[%clk 0:00:02]}  Nxg7 {[%clk 0:00:07]} 40. Rxc6 {[%clk 0:00:03]}  Kf7 {[%clk 0:00:07]} 41. Kf4 {[%clk 0:00:03]}  Ke7 {[%clk 0:00:03]} 42. Rc7+ {[%clk 0:00:03]}  Kf6 {[%clk 0:00:03]} 43. Rxa7 {[%clk 0:00:04]}  Ne6+ {[%clk 0:00:04]} 44. Ke3 {[%clk 0:00:04]}  f4+ {[%clk 0:00:05]} 45. Kf2 {[%clk 0:00:04]}  Nxd4 {[%clk 0:00:05]} 46. Rd7 {[%clk 0:00:04]}  Ke5 {[%clk 0:00:06]} 47. Re7+ {[%clk 0:00:04]}  Ne6 {[%clk 0:00:06]} 48. Rd7 {[%clk 0:00:04]}  e3+ {[%clk 0:00:06]} 49. Kf3 {[%clk 0:00:05]}  Nd4+ {[%clk 0:00:07]} 50. Kg2 {[%clk 0:00:04]}  Ke4 {[%clk 0:00:07]} 51. Re7+ {[%clk 0:00:04]}  Kf5 {[%clk 0:00:06]} 52. Rd7 {[%clk 0:00:04]}  Ke5 {[%clk 0:00:07]} 53. Re7+ {[%clk 0:00:04]}  Ne6 {[%clk 0:00:07]} 54. Kf3 {[%clk 0:00:05]}  d4 {[%clk 0:00:08]} 55. Rd7 {[%clk 0:00:05]}  Ng5+ {[%clk 0:00:07]} 56. Kg4 {[%clk 0:00:06]}  e2 {[%clk 0:00:07]} 57. Kxg5 {[%clk 0:00:06]}  Ke6 {[%clk 0:00:06]} 58. Rd8 {[%clk 0:00:04]}  Ke7 {[%clk 0:00:06]} 59. Rxd4 {[%clk 0:00:03]}  e1=Q {[%clk 0:00:07]} 60. Kxf4 {[%clk 0:00:03]}  Kf6 {[%clk 0:00:06]} 61. Rd6+ {[%clk 0:00:03]}  Ke7 {[%clk 0:00:07]} 62. Rd4 {[%clk 0:00:04]}  Qf2+ {[%clk 0:00:07]} 63. Ke5 {[%clk 0:00:04]}  Qf6+ {[%clk 0:00:07]} 64. Kd5 {[%clk 0:00:04]}  Qe6+ {[%clk 0:00:07]} 65. Kc5 {[%clk 0:00:05]}  Qe5+ {[%clk 0:00:07]} 66. Kc4 {[%clk 0:00:05]}  Ke6 {[%clk 0:00:08]} 67. Kd3 {[%clk 0:00:04]}  Qb5+ {[%clk 0:00:08]} 68. Ke4 {[%clk 0:00:04]}  Qe2+ {[%clk 0:00:08]} 69. Kf4 {[%clk 0:00:01]}  Qe5+ {[%clk 0:00:08]} 0-1


[Site "https://www.chess.com"]

[Event "Titled Tuesday Blitz August 1 Late 2023"]
[White "Pichot, Alan"]
[Black "Wu, Rochelle"]
[WhiteFideId "110973"]
[BlackFideId "30908132"]
[WhiteElo "2838"]
[BlackElo "2628"]
[Result "1-0"]
[Round "6"]
[TimeControl "180+1"]
[Date "2023.08.01"]
[WhiteClock "0:00:40"]
[BlackClock "0:00:02"]
[Board "21"]

1. e4 {[%clk 0:02:54]}  c5 {[%clk 0:02:59]} 2. Nf3 {[%clk 0:02:50]}  d6 {[%clk 0:02:59]} 3. Nc3 {[%clk 0:02:50]}  Nc6 {[%clk 0:02:58]} 4. d4 {[%clk 0:02:50]}  cxd4 {[%clk 0:02:58]} 5. Nxd4 {[%clk 0:02:51]}  Nf6 {[%clk 0:02:58]} 6. Nd5 {[%clk 0:02:51]}  e6 {[%clk 0:02:57]} 7. Nxf6+ {[%clk 0:02:49]}  gxf6 {[%clk 0:02:58]} 8. Be3 {[%clk 0:02:47]}  Be7 {[%clk 0:02:55]} 9. Qh5 {[%clk 0:02:46]}  Bd7 {[%clk 0:02:48]} 10. O-O-O {[%clk 0:02:40]}  a6 {[%clk 0:02:37]} 11. f4 {[%clk 0:02:39]}  Qa5 {[%clk 0:02:31]} 12. Qxa5 {[%clk 0:02:34]}  Nxa5 {[%clk 0:02:32]} 13. Be2 {[%clk 0:02:31]}  Rc8 {[%clk 0:02:31]} 14. b3 {[%clk 0:02:26]}  Nc6 {[%clk 0:02:26]} 15. Bh5 {[%clk 0:02:24]}  Nxd4 {[%clk 0:02:22]} 16. Bxd4 {[%clk 0:02:22]}  Rg8 {[%clk 0:02:20]} 17. g3 {[%clk 0:02:20]}  Bc6 {[%clk 0:02:13]} 18. Rhe1 {[%clk 0:02:18]}  d5 {[%clk 0:01:43]} 19. exd5 {[%clk 0:02:13]}  Bxd5 {[%clk 0:01:43]} 20. Bxf6 {[%clk 0:02:10]}  Bxf6 {[%clk 0:01:32]} 21. Rxd5 {[%clk 0:02:09]}  Ke7 {[%clk 0:01:30]} 22. Bf3 {[%clk 0:02:00]}  Rc3 {[%clk 0:01:24]} 23. Bg2 {[%clk 0:01:40]}  Rgc8 {[%clk 0:01:19]} 24. Rd2 {[%clk 0:01:40]}  R3c7 {[%clk 0:01:16]} 25. Red1 {[%clk 0:01:34]}  Bc3 {[%clk 0:01:12]} 26. Re2 {[%clk 0:01:34]}  Kf8 {[%clk 0:01:09]} 27. Rd3 {[%clk 0:01:32]}  b6 {[%clk 0:01:02]} 28. Be4 {[%clk 0:01:25]}  Kg7 {[%clk 0:00:59]} 29. g4 {[%clk 0:01:23]}  Bb4 {[%clk 0:00:52]} 30. f5 {[%clk 0:01:07]}  e5 {[%clk 0:00:40]} 31. g5 {[%clk 0:01:06]}  f6 {[%clk 0:00:38]} 32. h4 {[%clk 0:01:05]}  Be7 {[%clk 0:00:36]} 33. Rg2 {[%clk 0:01:03]}  Kh8 {[%clk 0:00:29]} 34. g6 {[%clk 0:01:01]}  Bf8 {[%clk 0:00:25]} 35. h5 {[%clk 0:00:58]}  Bh6+ {[%clk 0:00:19]} 36. Kb2 {[%clk 0:00:58]}  Bf4 {[%clk 0:00:18]} 37. Rd6 {[%clk 0:00:57]}  Be3 {[%clk 0:00:06]} 38. Rxf6 {[%clk 0:00:43]}  h6 {[%clk 0:00:07]} 39. Rf7 {[%clk 0:00:42]}  Rc3 {[%clk 0:00:03]} 40. Rh7+ {[%clk 0:00:39]}  Kg8 {[%clk 0:00:02]} 41. Bd5+ {[%clk 0:00:40]} 1-0


[Site "https://www.chess.com"]

[Event "Titled Tuesday Blitz August 1 Late 2023"]
[White "Piesik, Piotr"]
[Black "Ashraf, Artin"]
[WhiteFideId "1136194"]
[BlackFideId "22514805"]
[WhiteElo "2631"]
[BlackElo "2828"]
[Result "1-0"]
[Round "6"]
[TimeControl "180+1"]
[Date "2023.08.01"]
[WhiteClock "0:00:45"]
[BlackClock "0:00:00"]
[Board "22"]

1. Nf3 {[%clk 0:03:00]}  c5 {[%clk 0:02:56]} 2. g3 {[%clk 0:03:00]}  Nc6 {[%clk 0:02:55]} 3. Bg2 {[%clk 0:03:01]}  g6 {[%clk 0:02:55]} 4. c3 {[%clk 0:03:01]}  Bg7 {[%clk 0:02:53]} 5. d4 {[%clk 0:03:00]}  cxd4 {[%clk 0:02:45]} 6. cxd4 {[%clk 0:03:01]}  d5 {[%clk 0:02:44]} 7. O-O {[%clk 0:03:01]}  Bg4 {[%clk 0:02:44]} 8. e3 {[%clk 0:02:57]}  e6 {[%clk 0:02:41]} 9. b3 {[%clk 0:02:56]}  Nge7 {[%clk 0:02:34]} 10. Ba3 {[%clk 0:02:55]}  O-O {[%clk 0:02:34]} 11. Nbd2 {[%clk 0:02:53]}  Qa5 {[%clk 0:02:34]} 12. Qc1 {[%clk 0:02:51]}  Rfc8 {[%clk 0:02:32]} 13. Qb2 {[%clk 0:02:50]}  Nb4 {[%clk 0:02:31]} 14. Bxb4 {[%clk 0:02:49]}  Qxb4 {[%clk 0:02:31]} 15. Rfc1 {[%clk 0:02:49]}  Nc6 {[%clk 0:02:26]} 16. a3 {[%clk 0:02:46]}  Qb6 {[%clk 0:02:25]} 17. b4 {[%clk 0:02:44]}  Bxf3 {[%clk 0:01:43]} 18. Nxf3 {[%clk 0:02:42]}  Na5 {[%clk 0:01:42]} 19. Bf1 {[%clk 0:02:36]}  Nc4 {[%clk 0:01:42]} 20. Qb3 {[%clk 0:02:32]}  Qc7 {[%clk 0:01:37]} 21. b5 {[%clk 0:02:26]}  Na5 {[%clk 0:01:14]} 22. Qd1 {[%clk 0:02:25]}  Qd8 {[%clk 0:01:10]} 23. Bd3 {[%clk 0:02:15]}  Bf8 {[%clk 0:01:09]} 24. a4 {[%clk 0:02:15]}  Bd6 {[%clk 0:01:08]} 25. Nd2 {[%clk 0:02:13]}  h5 {[%clk 0:00:57]} 26. Rxc8 {[%clk 0:02:08]}  Rxc8 {[%clk 0:00:57]} 27. Rc1 {[%clk 0:02:09]}  Ba3 {[%clk 0:00:52]} 28. Rxc8 {[%clk 0:02:07]}  Qxc8 {[%clk 0:00:53]} 29. Qc2 {[%clk 0:02:07]}  Qxc2 {[%clk 0:00:43]} 30. Bxc2 {[%clk 0:02:08]}  Bb4 {[%clk 0:00:42]} 31. Nf3 {[%clk 0:02:07]}  Kf8 {[%clk 0:00:36]} 32. Ne5 {[%clk 0:02:05]}  Bd6 {[%clk 0:00:32]} 33. Nd3 {[%clk 0:02:04]}  g5 {[%clk 0:00:28]} 34. Bd1 {[%clk 0:02:02]}  g4 {[%clk 0:00:26]} 35. h3 {[%clk 0:02:01]}  f5 {[%clk 0:00:25]} 36. h4 {[%clk 0:01:53]}  Ke7 {[%clk 0:00:24]} 37. Kf1 {[%clk 0:01:53]}  Nc4 {[%clk 0:00:24]} 38. Ke2 {[%clk 0:01:51]}  Kd8 {[%clk 0:00:24]} 39. Bb3 {[%clk 0:01:50]}  Na5 {[%clk 0:00:19]} 40. Ba2 {[%clk 0:01:49]}  Kc7 {[%clk 0:00:18]} 41. Kd2 {[%clk 0:01:48]}  Kb6 {[%clk 0:00:16]} 42. Kc3 {[%clk 0:01:47]}  a6 {[%clk 0:00:17]} 43. bxa6 {[%clk 0:01:47]}  bxa6 {[%clk 0:00:18]} 44. Nc1 {[%clk 0:01:28]}  Nc6 {[%clk 0:00:16]} 45. Nd3 {[%clk 0:01:24]}  Ne7 {[%clk 0:00:12]} 46. Bb3 {[%clk 0:01:19]}  Ka5 {[%clk 0:00:10]} 47. Bd1 {[%clk 0:01:16]}  Ng8 {[%clk 0:00:08]} 48. Bc2 {[%clk 0:01:11]}  Kb6 {[%clk 0:00:06]} 49. Bb3 {[%clk 0:01:06]}  Nf6 {[%clk 0:00:06]} 50. Kd2 {[%clk 0:01:03]}  Ne4+ {[%clk 0:00:05]} 51. Ke1 {[%clk 0:00:57]}  Ka5 {[%clk 0:00:05]} 52. Bc2 {[%clk 0:00:57]}  Bb4+ {[%clk 0:00:04]} 53. Kf1 {[%clk 0:00:54]}  Bd6 {[%clk 0:00:03]} 54. Ke1 {[%clk 0:00:54]}  Nc3 {[%clk 0:00:03]} 55. Nc5 {[%clk 0:00:45]}  Bxc5 {[%clk 0:00:01]} 56. dxc5 {[%clk 0:00:46]}  Ne4 {[%clk 0:00:01]} 57. Bxe4 {[%clk 0:00:45]}  fxe4 {[%clk 0:00:01]} 58. Kd2 {[%clk 0:00:44]}  e5 {[%clk 0:00:02]} 59. Kc3 {[%clk 0:00:45]}  d4+ {[%clk 0:00:00]} 60. exd4 {[%clk 0:00:45]} 1-0


[Site "https://www.chess.com"]

[Event "Titled Tuesday Blitz August 1 Late 2023"]
[White "Ganiev, Roman"]
[Black "Grigorov, Grigor"]
[WhiteFideId "4131452"]
[BlackFideId "2907313"]
[WhiteElo "2604"]
[BlackElo "2787"]
[Result "1/2-1/2"]
[Round "6"]
[TimeControl "180+1"]
[Date "2023.08.01"]
[WhiteClock "0:00:36"]
[BlackClock "0:00:16"]
[Board "24"]

1. e4 {[%clk 0:03:00]}  c6 {[%clk 0:03:00]} 2. d4 {[%clk 0:03:00]}  d5 {[%clk 0:03:00]} 3. Nc3 {[%clk 0:03:01]}  dxe4 {[%clk 0:02:59]} 4. Nxe4 {[%clk 0:03:01]}  Nf6 {[%clk 0:02:59]} 5. Nxf6+ {[%clk 0:03:02]}  exf6 {[%clk 0:03:00]} 6. c3 {[%clk 0:03:02]}  Bd6 {[%clk 0:02:56]} 7. Bd3 {[%clk 0:03:03]}  Na6 {[%clk 0:02:57]} 8. Ne2 {[%clk 0:03:03]}  Nc7 {[%clk 0:02:56]} 9. O-O {[%clk 0:03:04]}  O-O {[%clk 0:02:56]} 10. Bf4 {[%clk 0:03:02]}  Bg4 {[%clk 0:02:54]} 11. Qd2 {[%clk 0:02:58]}  Nd5 {[%clk 0:02:52]} 12. Bxd6 {[%clk 0:02:56]}  Qxd6 {[%clk 0:02:52]} 13. Ng3 {[%clk 0:02:56]}  Rfe8 {[%clk 0:02:42]} 14. Rfe1 {[%clk 0:02:55]}  Qf4 {[%clk 0:02:38]} 15. Rxe8+ {[%clk 0:02:49]}  Rxe8 {[%clk 0:02:36]} 16. Re1 {[%clk 0:02:50]}  Rxe1+ {[%clk 0:02:28]} 17. Qxe1 {[%clk 0:02:51]}  Be6 {[%clk 0:02:20]} 18. h3 {[%clk 0:02:45]}  g6 {[%clk 0:02:19]} 19. Ne4 {[%clk 0:02:37]}  b6 {[%clk 0:02:17]} 20. Qd2 {[%clk 0:02:08]}  Kg7 {[%clk 0:02:06]} 21. a3 {[%clk 0:01:55]}  Qc7 {[%clk 0:02:02]} 22. Ng3 {[%clk 0:01:49]}  Nf4 {[%clk 0:01:58]} 23. Be4 {[%clk 0:01:46]}  Bc4 {[%clk 0:01:51]} 24. Qe3 {[%clk 0:01:25]}  c5 {[%clk 0:01:28]} 25. dxc5 {[%clk 0:01:23]}  bxc5 {[%clk 0:01:28]} 26. b4 {[%clk 0:01:22]}  cxb4 {[%clk 0:01:27]} 27. cxb4 {[%clk 0:01:22]}  Qe5 {[%clk 0:01:17]} 28. Qxa7 {[%clk 0:01:04]}  f5 {[%clk 0:01:16]} 29. Bf3 {[%clk 0:01:04]}  Nd3 {[%clk 0:01:03]} 30. Ne2 {[%clk 0:00:39]}  Qa1+ {[%clk 0:00:44]} 31. Kh2 {[%clk 0:00:38]}  Qe5+ {[%clk 0:00:41]} 32. Kg1 {[%clk 0:00:38]}  Qa1+ {[%clk 0:00:24]} 33. Kh2 {[%clk 0:00:36]}  Qe5+ {[%clk 0:00:16]} 34. Kg1 {[%clk 0:00:36]} 1/2-1/2


[Site "https://www.chess.com"]

[Event "Titled Tuesday Blitz August 1 Late 2023"]
[White "Dobrikov, Marco"]
[Black "Weetik, Vjacheslav"]
[WhiteFideId "12950378"]
[BlackFideId "4153472"]
[WhiteElo "2567"]
[BlackElo "2764"]
[Result "0-1"]
[Round "6"]
[TimeControl "180+1"]
[Date "2023.08.01"]
[WhiteClock "0:00:11"]
[BlackClock "0:00:08"]
[Board "26"]

1. d4 {[%clk 0:03:00]}  Nf6 {[%clk 0:02:57]} 2. Bf4 {[%clk 0:03:00]}  d5 {[%clk 0:02:55]} 3. e3 {[%clk 0:03:00]}  c5 {[%clk 0:02:55]} 4. c3 {[%clk 0:03:01]}  e6 {[%clk 0:02:53]} 5. Nd2 {[%clk 0:03:01]}  Bd6 {[%clk 0:02:50]} 6. Bg3 {[%clk 0:02:57]}  O-O {[%clk 0:02:49]} 7. Ngf3 {[%clk 0:02:57]}  Qc7 {[%clk 0:02:49]} 8. Bd3 {[%clk 0:02:55]}  Nbd7 {[%clk 0:02:48]} 9. Qc2 {[%clk 0:02:54]}  e5 {[%clk 0:02:32]} 10. dxe5 {[%clk 0:02:50]}  Nxe5 {[%clk 0:02:32]} 11. Bh4 {[%clk 0:02:41]}  Nxd3+ {[%clk 0:01:57]} 12. Qxd3 {[%clk 0:02:41]}  c4 {[%clk 0:01:02]} 13. Qc2 {[%clk 0:02:35]}  Nd7 {[%clk 0:00:51]} 14. O-O {[%clk 0:02:29]}  Nc5 {[%clk 0:00:49]} 15. Nd4 {[%clk 0:02:29]}  Bxh2+ {[%clk 0:00:46]} 16. Kh1 {[%clk 0:02:29]}  Be5 {[%clk 0:00:37]} 17. N2f3 {[%clk 0:02:28]}  f6 {[%clk 0:00:25]} 18. Rad1 {[%clk 0:02:19]}  Bg4 {[%clk 0:00:24]} 19. Nf5 {[%clk 0:01:59]}  Nd3 {[%clk 0:00:21]} 20. N5d4 {[%clk 0:01:39]}  Qf7 {[%clk 0:00:20]} 21. Bg3 {[%clk 0:01:26]}  Rae8 {[%clk 0:00:20]} 22. Kg1 {[%clk 0:01:25]}  Qh5 {[%clk 0:00:19]} 23. Rxd3 {[%clk 0:01:20]}  cxd3 {[%clk 0:00:18]} 24. Qxd3 {[%clk 0:01:21]}  a6 {[%clk 0:00:16]} 25. Rd1 {[%clk 0:01:06]}  Bxg3 {[%clk 0:00:16]} 26. fxg3 {[%clk 0:01:06]}  Re4 {[%clk 0:00:17]} 27. Kf2 {[%clk 0:01:05]}  Rfe8 {[%clk 0:00:17]} 28. Re1 {[%clk 0:01:06]}  Bxf3 {[%clk 0:00:14]} 29. Nxf3 {[%clk 0:01:04]}  Qf7 {[%clk 0:00:13]} 30. a4 {[%clk 0:00:59]}  h6 {[%clk 0:00:13]} 31. a5 {[%clk 0:01:00]}  R4e7 {[%clk 0:00:09]} 32. Nd4 {[%clk 0:00:58]}  Qh5 {[%clk 0:00:08]} 33. Nf3 {[%clk 0:00:52]}  Rd8 {[%clk 0:00:06]} 34. Qd4 {[%clk 0:00:51]}  Qf7 {[%clk 0:00:06]} 35. Qb6 {[%clk 0:00:50]}  Rdd7 {[%clk 0:00:05]} 36. Rd1 {[%clk 0:00:50]}  Qg6 {[%clk 0:00:05]} 37. Qc5 {[%clk 0:00:46]}  Qc2+ {[%clk 0:00:05]} 38. Rd2 {[%clk 0:00:47]}  Qe4 {[%clk 0:00:06]} 39. Re2 {[%clk 0:00:36]}  Kh7 {[%clk 0:00:06]} 40. Nd2 {[%clk 0:00:37]}  Qf5+ {[%clk 0:00:06]} 41. Nf3 {[%clk 0:00:37]}  Rc7 {[%clk 0:00:06]} 42. Qb4 {[%clk 0:00:36]}  Re4 {[%clk 0:00:05]} 43. Qb6 {[%clk 0:00:35]}  Rce7 {[%clk 0:00:05]} 44. Qd6 {[%clk 0:00:33]}  g5 {[%clk 0:00:04]} 45. Kg1 {[%clk 0:00:24]}  Qe6 {[%clk 0:00:04]} 46. Qxe6 {[%clk 0:00:16]}  R7xe6 {[%clk 0:00:05]} 47. Kf2 {[%clk 0:00:17]}  Ra4 {[%clk 0:00:05]} 48. Nd4 {[%clk 0:00:18]}  Re4 {[%clk 0:00:05]} 49. b4 {[%clk 0:00:18]}  Kg6 {[%clk 0:00:05]} 50. Rc2 {[%clk 0:00:17]}  h5 {[%clk 0:00:04]} 51. Ke2 {[%clk 0:00:17]}  Ra1 {[%clk 0:00:04]} 52. Kf3 {[%clk 0:00:17]}  Rf1+ {[%clk 0:00:04]} 53. Ke2 {[%clk 0:00:18]}  Rg1 {[%clk 0:00:04]} 54. Kf2 {[%clk 0:00:18]}  Rb1 {[%clk 0:00:05]} 55. Kf3 {[%clk 0:00:16]}  Re8 {[%clk 0:00:05]} 56. Kf2 {[%clk 0:00:16]}  Rc8 {[%clk 0:00:06]} 57. Ne2 {[%clk 0:00:16]}  Rxb4 {[%clk 0:00:06]} 58. Rd2 {[%clk 0:00:15]}  Rb5 {[%clk 0:00:06]} 59. Nd4 {[%clk 0:00:15]}  Rxa5 {[%clk 0:00:07]} 60. Rb2 {[%clk 0:00:14]}  b5 {[%clk 0:00:07]} 61. Rb3 {[%clk 0:00:15]}  Ra4 {[%clk 0:00:07]} 62. Ne6 {[%clk 0:00:14]}  Rac4 {[%clk 0:00:07]} 63. Ra3 {[%clk 0:00:13]}  R8c6 {[%clk 0:00:08]} 64. Rxa6 {[%clk 0:00:11]}  Rxa6 {[%clk 0:00:08]} 0-1


[Site "https://www.chess.com"]